[Event "1.FrauenBL 2016-17"]
[Site "Berlin"]
[Date "2017.04.29"]
[Round "10.1"]
[White "Zahn, Alina"]
[Black "Duessler, Stefanie"]
[Result "0-1"]
[ECO "B26"]
[WhiteElo "2020"]
[BlackElo "2086"]
[Annotator "NA"]
[PlyCount "88"]
[EventDate "2017.??.??"]
[EventType "team-tourn"]
[EventCountry "GER"]
[SourceTitle "playchess.com"]
[Source "ChessBase"]
[SourceQuality "1"]
[WhiteTeam "Hamburger SK"]
[BlackTeam "SK Lehrte"]
[TimeControl "40/6000+30:3000+30"]

1. e4 {[%emt 1:30:27]} c5 {[%emt 1:30:27]} 2. Ne2 {[%emt 1:30:27]} e6 {[%emt 1:30:47]} 3. g3 {[%emt 1:30:53]} Nc6 {[%emt 1:31:21]} 4. Nbc3 {[%emt 1:30:08]} g6 {[%emt 1:30:08]} 5. Bg2 {[%emt 1:28:20]} Bg7 {[%emt 1:24:07]} 6. O-O {[%emt 1:24:07]} Nge7 {[%emt 1:24:29]} 7. d3 {[%emt 1:24:29]} O-O {[%emt 1:24:39]} 8. Be3 {[%emt 1:22:36]} Nd4 {[%emt 1:21:46]} 9. Qd2 {[%emt 1:21:46]} d6 {[%emt 1:20:59]} 10. Nd1 {[%emt 1:08:06]} Nxe2+ {[%emt 1:19:32]} 11. Qxe2 {[%emt 1:08:28]} Rb8 {[%emt 1:19:05]} 12. c3 {[%emt 1:05:08]} e5 {[%emt 1:16:51]} 13. f4 {[%emt 0:56:02]} Qc7 {[%emt 1:14:37]} 14. Nf2 {[%emt 0:53:33]} b5 {[%emt 1:12:27]} 15. fxe5 {[%emt 0:50:56]} dxe5 {[%emt 1:05:37]} 16. Ng4 {[%emt 1:05:37]} f5 {[%emt 0:58:20]} 17. Nh6+ {[%emt 0:58:20]} Kh8 $11 {[%emt 0:57:35]} 18. Bg5 {[%emt 0:38:46]} Rb6 {[%emt 0:36:31]} 19. Rf2 {[%emt 0:34:14]} Be6 {[%emt 0:34:14]} 20. Raf1 {[%emt 0:22:21]} c4 {[%emt 0:16:05]} 21. Rd1 {[%emt 0:16:05]} Rd6 {[%emt 0:13:05]} 22. b3 {[%emt 0:17:52]} Ng8 {[%emt 0:17:52]} 23. Nxg8 {[%emt 0:16:25]} Bxg8 {[%emt 0:12:15]} 24. bxc4 {[%emt 0:10:33]} Ra6 {[%emt 0:09:39]} 25. exf5 {[%emt 0:08:53]} gxf5 {[%emt 0:08:48]} 26. Rdf1 {[%emt 0:08:48]} bxc4 {[%emt 0:08:45]} 27. Rxf5 {[%emt 0:05:42]} Rxf5 {[%emt 0:09:14]} 28. Rxf5 {[%emt 0:05:58]} cxd3 {[%emt 0:09:40]} 29. Qxd3 {[%emt 0:05:44]} Rxa2 {[%emt 0:10:07]} 30. Be3 {[%emt 0:10:07]} Ra3 {[%emt 0:02:41]} 31. Bd2 {[%emt 0:00:58]} Qc5+ {[%emt 0:00:58]} 32. Be3 {[%emt 0:00:44]} Qc7 {[%emt 0:05:46]} 33. Bd2 {[%emt 0:01:10]} a5 {[%emt 0:03:44]} 34. Rf2 {[%emt 0:03:44]} Ra1+ {[%emt 0:02:48]} 35. Bf1 {[%emt 0:01:00]} a4 {[%emt 0:02:22]} 36. Be3 {[%emt 0:00:41]} Ra3 {[%emt 0:02:02]} 37. Bd2 {[%emt 0:00:45]} Rb3 {[%emt 0:02:22]} 38. Qe4 {[%emt 0:00:36]} a3 {[%emt 0:02:15]} 39. Bg5 {[%emt 0:02:15]} Qxc3 {[%emt 0:01:28]} 40. Qa8 {[%emt 0:00:43]} Qc5 {[%emt 0:01:27]} 41. Qd8 {[%emt 0:11:33]} Rb2 {[%emt 0:31:04]} 42. Qf6 {[%emt 0:11:19]} Qxf2+ {[%emt 0:31:23]} 43. Qxf2 {[%emt 0:31:23]} Rxf2 {[%emt 0:31:46]} 44. Kxf2 {[%emt 0:12:10]} a2 {[%emt 0:31:47]} 0-1

[Event "1.FrauenBL 2016-17"]
[Site "Berlin"]
[Date "2017.04.29"]
[Round "10.2"]
[White "Troyke, Doreen"]
[Black "Brandt, Carina"]
[Result "1/2-1/2"]
[ECO "A86"]
[WhiteElo "2091"]
[BlackElo "2045"]
[Annotator "NA"]
[PlyCount "85"]
[EventDate "2017.??.??"]
[EventType "team-tourn"]
[EventCountry "GER"]
[SourceTitle "playchess.com"]
[Source "ChessBase"]
[SourceQuality "1"]
[WhiteTeam "SV Medizin Erfurt"]
[BlackTeam "TuRa Harksheide"]
[TimeControl "40/6000+30:3000+30"]

1. c4 {[%emt 1:30:27]} g6 {[%emt 1:30:21]} 2. g3 {[%emt 1:30:50]} Bg7 {[%emt 1:30:39]} 3. Bg2 {[%emt 1:30:39]} d6 {[%emt 1:30:53]} 4. Nc3 {[%emt 1:31:02]} e5 {[%emt 1:31:15]} 5. e3 {[%emt 1:31:15]} f5 {[%emt 1:31:38]} 6. Nge2 {[%emt 1:31:38]} Nf6 {[%emt 1:31:38]} 7. O-O {[%emt 1:31:11]} O-O {[%emt 1:31:11]} 8. d4 {[%emt 1:29:52]} Nbd7 {[%emt 1:27:18] LiveBook: 5 Games} 9. b3 {[%emt 1:25:48]} c6 {[%emt 1:25:48]} 10. Ba3 {[%emt 1:18:09] A86: Dutch Defence: Leningrad System: Unusual lines and 5 Nh3} Ne8 {[%emt 1:20:38]} 11. dxe5 {[%emt 1:15:55]} Nxe5 {[%emt 1:20:40]} 12. Qd2 {[%emt 1:20:40]} Nf7 $146 {[%emt 1:12:29]} (12... Qa5 13. Bb2 Bd7 14. Rad1 Rd8 15. Qc2 Bc8 16. a3 Qc7 {1-0 (30) Raicevic,M (2372)-Micheli,C (2268) Rogaska Slatina 2012}) 13. Rad1 {[%emt 1:05:35]} Qa5 {[%emt 1:04:13]} 14. Bb2 {[%emt 1:07:32]} Ne5 {[%emt 0:59:27]} 15. f4 {[%emt 0:59:27]} Ng4 {[%emt 0:56:03]} 16. h3 {[%emt 0:48:45]} Ngf6 {[%emt 0:54:04]} 17. Kh2 {[%emt 0:54:04]} Be6 {[%emt 0:51:41]} 18. Nd4 {[%emt 0:43:19]} Bf7 {[%emt 0:50:42]} 19. Rfe1 $14 {[%emt 0:36:30]} Rd8 {[%emt 0:45:48]} 20. Nf3 {[%emt 0:32:53]} Nc7 {[%emt 0:34:30]} 21. e4 {[%emt 0:22:13]} fxe4 {[%emt 0:29:12]} 22. Nxe4 {[%emt 0:22:13]} Qxd2 {[%emt 0:28:39]} 23. Rxd2 {[%emt 0:21:34]} Nxe4 {[%emt 0:21:34]} 24. Rxe4 {[%emt 0:21:39]} Bxb2 {[%emt 0:21:39]} 25. Rxb2 {[%emt 0:22:07]} Rde8 {[%emt 0:24:36]} 26. Rbe2 {[%emt 0:17:29]} d5 {[%emt 0:22:12]} 27. cxd5 {[%emt 0:16:08]} Nxd5 {[%emt 0:16:08]} 28. Rxe8 {[%emt 0:13:13]} Rxe8 {[%emt 0:13:13]} 29. Ne5 {[%emt 0:12:26]} a5 {[%emt 0:19:56]} 30. Rd2 {[%emt 0:19:56]} Be6 {[%emt 0:08:42]} 31. Bf3 {[%emt 0:05:59]} a4 {[%emt 0:15:09]} 32. bxa4 {[%emt 0:02:56]} Ra8 {[%emt 0:02:56]} 33. Rb2 {[%emt 0:03:13]} Rxa4 {[%emt 0:13:36]} 34. Rxb7 {[%emt 0:02:54]} Rxa2+ {[%emt 0:13:51]} 35. Kg1 {[%emt 0:03:15]} Rc2 {[%emt 0:09:17]} 36. h4 {[%emt 0:02:55]} Rc3 {[%emt 0:02:55]} 37. Ra7 {[%emt 0:02:30]} c5 {[%emt 0:02:30]} 38. Ra6 {[%emt 0:02:51]} Bf7 {[%emt 0:03:59]} 39. Ra8+ {[%emt 0:02:14]} Kg7 {[%emt 0:04:16]} 40. Ra7 {[%emt 0:02:28]} Kg8 {[%emt 0:04:20]} 41. Ra8+ {[%emt 0:22:11]} Kg7 {[%emt 0:34:41]} 42. Ra7 {[%emt 0:22:34]} Kg8 {[%emt 0:35:04]} 43. Rd7 {[%emt 0:17:53] Rxg3 0:17:53 Kf2# 0:17:53} 1/2-1/2

[Event "1.FrauenBL 2016-17"]
[Site "Berlin"]
[Date "2017.04.29"]
[Round "10.2"]
[White "Boehm, Jana"]
[Black "Schmidt, Jade"]
[Result "1-0"]
[ECO "B67"]
[WhiteElo "1963"]
[BlackElo "2072"]
[Annotator "NA RC"]
[PlyCount "67"]
[EventDate "2017.??.??"]
[EventType "team-tourn"]
[EventCountry "GER"]
[SourceTitle "playchess.com"]
[Source "ChessBase"]
[SourceQuality "1"]
[WhiteTeam "SK Lehrte"]
[BlackTeam "Hamburger SK"]
[TimeControl "40/6000+30:3000+30"]

1. e4 {[%emt 1:30:27]} c5 {[%emt 1:30:22]} 2. Nf3 {[%emt 1:30:22]} d6 {[%emt 1:30:35]} 3. d4 {[%emt 1:30:35]} cxd4 {[%emt 1:30:57]} 4. Nxd4 {[%emt 1:31:46]} Nf6 {[%emt 1:31:18]} 5. Nc3 {[%emt 1:32:11]} Nc6 {[%emt 1:31:38]} 6. Bg5 {[%emt 1:32:15]} e6 {[%emt 1:31:48]} 7. Qd2 {[%emt 1:30:15]} a6 {[%emt 1:30:15]} 8. O-O-O {[%emt 1:29:05]} Bd7 {[%emt 1:32:13]} 9. Kb1 {[%emt 1:27:19]} b5 {[%emt 1:31:04]} 10. f3 {[%emt 1:24:20] LiveBook: 55 Partien} Be7 {[%emt 1:30:02]} 11. h4 {[%emt 1:30:02] B67: Sicilian: Richter-Rauzer: 7...a6 8 0-0-0 Bd7, lines without 9 f4 Be7} h6 {[%emt 1:20:47]} 12. Be3 {[%emt 1:21:31]} Ne5 {[%emt 1:16:14]} 13. g4 $146 {[%emt 1:17:53]} (13. Bd3 Qc7 14. g4 b4 15. Nce2 Nxd3 16. cxd3 e5 17. Rc1 Qb7 18. Nf5 Bxf5 19. gxf5 {1-0 (42) Korneev,O (2638)-Markus,R (2586) Vrsac 2006}) 13... b4 {[%emt 1:13:26]} 14. Nce2 {[%emt 1:13:26]} Nc4 {[%emt 1:18:04]} 15. Qd3 {[%emt 1:18:06]} Bb5 {[%emt 0:53:52]} 16. Nxb5 {[%emt 1:16:11]} axb5 {[%emt 0:54:15]} 17. Nc1 {[%emt 1:06:40]} Nd7 {[%emt 0:46:01]} 18. Qb3 {[%emt 1:02:19]} Nxe3 $16 {[%emt 0:17:22]} (18... Qc7 $11) 19. Qxe3 {[%emt 0:17:22]} Qa5 {[%emt 1:02:42]} 20. f4 {[%emt 0:57:44]} Nc5 {[%emt 0:57:44]} 21. Bg2 {[%emt 0:50:54]} Ra7 {[%emt 0:13:16]} 22. e5 {[%emt 0:48:04]} d5 {[%emt 0:13:28]} 23. f5 {[%emt 0:46:37]} Nd7 {[%emt 0:46:37]} 24. g5 {[%emt 0:32:50]} Nb6 {[%emt 0:10:40]} 25. fxe6 {[%emt 0:29:19]} fxe6 {[%emt 0:10:19]} 26. Qh3 {[%emt 0:25:12]} hxg5 {[%emt 0:08:46]} 27. Qxe6 {[%emt 0:24:33]} gxh4 {[%emt 0:06:23]} 28. Qc6+ {[%emt 0:22:52]} Nd7 {[%emt 0:00:40]} 29. e6 {[%emt 0:21:01]} Rh6 {[%emt 0:00:50]} 30. Qc8+ {[%emt 0:16:34]} Bd8 {[%emt 0:16:34]} 31. exd7+ {[%emt 0:16:42]} Kf8 {[%emt 0:00:16]} 32. Qc5+ {[%emt 0:15:59]} Kg8 {[%emt 0:00:29]} 33. Qxd5+ {[%emt 0:16:29]} Kh8 {[%emt 0:16:29]} 34. Rde1 {[%emt 0:13:16]} 1-0

[Event "1.FrauenBL 2016-17"]
[Site "Berlin"]
[Date "2017.04.29"]
[Round "10.3"]
[White "Scognamiglio, Stefanie"]
[Black "Zschischang, Marine"]
[Result "1/2-1/2"]
[ECO "B20"]
[WhiteElo "2086"]
[BlackElo "2037"]
[Annotator "NA RC"]
[PlyCount "78"]
[EventDate "2017.??.??"]
[EventType "team-tourn"]
[EventCountry "GER"]
[SourceTitle "playchess.com"]
[Source "ChessBase"]
[SourceQuality "1"]
[WhiteTeam "Hamburger SK"]
[BlackTeam "SK Lehrte"]
[TimeControl "40/6000+30:3000+30"]

1. e4 {[%emt 1:30:27]} e6 {[%emt 1:30:23]} 2. d3 {[%emt 1:30:40]} c5 {[%emt 1:30:46]} 3. g3 {[%emt 1:31:00]} Nc6 {[%emt 1:31:02]} 4. Bg2 {[%emt 1:31:22]} g6 {[%emt 1:31:21]} 5. Ne2 {[%emt 1:29:54]} Bg7 {[%emt 1:31:22]} 6. c4 {[%emt 1:29:30]} e5 {[%emt 1:29:30]} 7. O-O {[%emt 1:29:28]} d6 {[%emt 1:29:14]} 8. h3 {[%emt 1:28:47]} h6 {[%emt 1:28:47]} 9. Nbc3 {[%emt 1:28:56]} Nge7 {[%emt 1:29:15]} 10. Nd5 {[%emt 1:18:02]} Nxd5 {[%emt 1:18:02]} 11. exd5 {[%emt 1:17:58]} Ne7 {[%emt 1:29:18]} 12. Bd2 {[%emt 1:29:18]} a5 {[%emt 1:21:52]} 13. Nc3 {[%emt 1:10:57]} Nf5 {[%emt 1:03:49]} 14. Kh2 {[%emt 1:02:37]} O-O {[%emt 0:56:33]} 15. Rb1 {[%emt 0:56:33]} Bd7 {[%emt 0:38:08]} 16. Ne4 {[%emt 0:54:33]} Ra6 {[%emt 0:36:33]} 17. f4 {[%emt 0:51:44]} exf4 $15 {[%emt 0:31:38]} 18. Bxf4 {[%emt 0:51:55]} g5 {[%emt 0:31:38]} 19. Bd2 {[%emt 0:43:48]} Nd4 {[%emt 0:20:12]} 20. Bc3 {[%emt 0:24:37]} f5 {[%emt 0:19:42]} 21. Nd2 {[%emt 0:22:03]} Be5 {[%emt 0:22:03]} 22. Nf3 {[%emt 0:13:13]} Nxf3+ {[%emt 0:03:51]} 23. Qxf3 {[%emt 0:13:14]} Ra8 {[%emt 0:01:56]} 24. Bxe5 {[%emt 0:07:59]} dxe5 {[%emt 0:02:25]} 25. a3 {[%emt 0:06:30]} b5 {[%emt 0:00:36]} 26. d6 {[%emt 0:06:07]} Qf6 {[%emt 0:00:49]} 27. Qd5+ {[%emt 0:06:04]} Kh8 {[%emt 0:00:22]} 28. Rbe1 {[%emt 0:03:33]} Rfe8 {[%emt 0:03:33]} 29. Qxc5 {[%emt 0:02:09]} Rac8 {[%emt 0:01:08]} 30. Qb6 {[%emt 0:02:30]} bxc4 {[%emt 0:01:24]} 31. dxc4 {[%emt 0:02:02]} Rxc4 {[%emt 0:01:52]} 32. Qxa5 {[%emt 0:02:08]} Qxd6 {[%emt 0:02:00]} 33. Rc1 {[%emt 0:01:34]} Rxc1 {[%emt 0:01:51]} 34. Rxc1 {[%emt 0:02:02]} f4 {[%emt 0:02:00]} 35. gxf4 {[%emt 0:00:49]} gxf4 {[%emt 0:01:37]} 36. Qc7 {[%emt 0:00:07]} Qd2 {[%emt 0:00:07]} 37. Rc2 {[%emt 0:00:36]} Qd3 {[%emt 0:01:42]} 38. Rc3 {[%emt 0:00:39]} Qd2 {[%emt 0:01:51]} 39. Rc2 {[%emt 0:00:58]} Qd3 {[%emt 0:01:58]} 1/2-1/2

[Event "1.FrauenBL 2016-17"]
[Site "Berlin"]
[Date "2017.04.29"]
[Round "10.4"]
[White "Markgraf, Claudia"]
[Black "Bluebaum, Bettina"]
[Result "1-0"]
[ECO "C02"]
[WhiteElo "1959"]
[BlackElo "1987"]
[Annotator "NA"]
[PlyCount "85"]
[EventDate "2017.??.??"]
[EventType "team-tourn"]
[EventCountry "GER"]
[SourceTitle "playchess.com"]
[Source "ChessBase"]
[SourceQuality "1"]
[WhiteTeam "SK Lehrte"]
[BlackTeam "Hamburger SK"]
[TimeControl "40/6000+30:3000+30"]

1. e4 {[%emt 1:30:26]} e6 {[%emt 1:30:12]} 2. d4 {[%emt 1:30:12]} d5 {[%emt 1:30:51]} 3. e5 {[%emt 1:30:37]} c5 {[%emt 1:30:56]} 4. c3 {[%emt 1:31:23]} Nc6 {[%emt 1:31:10]} 5. Nf3 {[%emt 1:31:30]} Bd7 {[%emt 1:31:11]} 6. a3 {[%emt 1:31:11]} f6 {[%emt 1:30:08]} 7. Be2 {[%emt 1:25:00]} Qc7 {[%emt 1:25:29]} 8. Bf4 {[%emt 1:25:29]} h6 {[%emt 1:20:47]} 9. Bg3 {[%emt 1:09:38]} f5 {[%emt 1:09:38]} 10. h4 {[%emt 0:54:20]} c4 {[%emt 1:06:40]} 11. Nbd2 {[%emt 0:51:23]} Na5 {[%emt 0:51:23]} 12. h5 {[%emt 0:44:53]} O-O-O {[%emt 0:44:53]} 13. Nh4 {[%emt 0:37:36]} Ne7 {[%emt 1:01:00]} 14. Rb1 {[%emt 1:01:00]} Kb8 {[%emt 0:51:00]} 15. O-O {[%emt 0:35:48]} Rg8 {[%emt 0:49:56]} 16. Re1 $11 {[%emt 0:24:19]} Be8 {[%emt 0:49:17]} 17. Bf3 {[%emt 0:12:07]} g5 {[%emt 0:44:11]} 18. hxg6 {[%emt 0:12:25]} Bxg6 {[%emt 0:35:49]} 19. Nxg6 {[%emt 0:05:46]} Nxg6 {[%emt 0:36:04]} 20. Qc2 {[%emt 0:04:27]} f4 {[%emt 0:35:11]} 21. Bh2 {[%emt 0:04:53]} Qg7 {[%emt 0:35:14]} 22. Kh1 {[%emt 0:04:04]} Nh4 {[%emt 0:33:36]} 23. Rg1 {[%emt 0:04:12]} Qg5 {[%emt 0:33:43]} 24. b3 {[%emt 0:01:47]} cxb3 {[%emt 0:23:17]} 25. Qd3 {[%emt 0:01:37]} Nf5 {[%emt 0:21:15]} 26. Nxb3 {[%emt 0:00:27]} Nc4 {[%emt 0:15:42]} 27. Nd2 {[%emt 0:00:25]} Nb6 {[%emt 0:12:51]} 28. Nf1 {[%emt 0:12:51]} Rg7 {[%emt 0:06:02]} 29. g3 {[%emt 0:00:34]} fxg3 {[%emt 0:05:45]} 30. Nxg3 {[%emt 0:00:56]} Nxg3+ {[%emt 0:02:13]} 31. Rxg3 {[%emt 0:01:24]} Qe7 {[%emt 0:01:58]} 32. Rxg7 {[%emt 0:01:38]} Bxg7 {[%emt 0:02:14]} 33. Rg1 {[%emt 0:01:59]} Qf7 {[%emt 0:01:59]} 34. Bg3 {[%emt 0:00:37]} Rf8 {[%emt 0:02:19]} 35. Bg4 {[%emt 0:00:37]} h5 {[%emt 0:02:35]} 36. Bh3 {[%emt 0:00:49]} Bh6 {[%emt 0:02:34]} 37. Bh4 {[%emt 0:00:54]} Nc4 {[%emt 0:00:54]} 38. Qg6 {[%emt 0:01:57]} Bd2 {[%emt 0:00:22]} 39. Qxf7 {[%emt 0:00:22]} Rxf7 {[%emt 0:00:50]} 40. Bxe6 {[%emt 0:00:50]} Rf3 {[%emt 0:01:04]} 41. Rg8+ {[%emt 0:01:04]} Kc7 {[%emt 0:25:29]} 42. Rc8+ {[%emt 0:21:22]} Kb6 {[%emt 0:21:22]} 43. Bd8+ {[%emt 0:31:51] --- 0:21:09 Rc7 0:21:09 Rf5 0:21:09 Bc7 0:21:09 Ne3 0:21:09 Bf7+ 0:21:09 --- 0:21:09 Rg7+ 0:21:09} 1-0

[Event "1.FrauenBL 2016-17"]
[Site "Berlin"]
[Date "2017.04.29"]
[Round "10.5"]
[White "Koehler, Inken"]
[Black "v.d. Weth-v. Nordheim, Petra"]
[Result "1-0"]
[ECO "B30"]
[WhiteElo "1968"]
[BlackElo "1983"]
[Annotator "NA RC"]
[PlyCount "104"]
[EventDate "2017.??.??"]
[EventType "team-tourn"]
[EventCountry "GER"]
[SourceTitle "playchess.com"]
[Source "ChessBase"]
[SourceQuality "1"]
[WhiteTeam "TuRa Harksheide"]
[BlackTeam "SV Medizin Erfurt"]
[TimeControl "40/6000+30:3000+30"]

1. e4 {[%emt 1:30:27]} c5 {[%emt 1:30:18]} 2. Nf3 {[%emt 1:30:38]} Nc6 {[%emt 1:30:39]} 3. Bb5 {[%emt 1:30:41]} d5 {[%emt 1:30:38]} 4. exd5 {[%emt 1:29:46]} Qxd5 {[%emt 1:30:44]} 5. Nc3 {[%emt 1:29:25]} Qe6+ {[%emt 1:29:21]} 6. Qe2 {[%emt 1:29:21]} Qxe2+ {[%emt 1:28:29]} 7. Nxe2 {[%emt 1:28:03]} Bd7 {[%emt 1:28:03]} 8. d4 {[%emt 1:13:37]} e6 {[%emt 1:06:21]} 9. c3 {[%emt 1:09:13]} cxd4 {[%emt 1:03:48]} 10. Nexd4 {[%emt 1:08:20]} Nxd4 {[%emt 1:02:51]} 11. Nxd4 {[%emt 1:07:57]} e5 {[%emt 0:47:41]} 12. Bxd7+ {[%emt 1:07:50]} Kxd7 {[%emt 0:48:08]} 13. Nf3 {[%emt 1:07:25]} f6 {[%emt 0:47:17]} 14. Be3 {[%emt 1:06:37]} Ne7 {[%emt 0:43:41]} 15. O-O-O+ {[%emt 1:00:44]} Ke6 {[%emt 0:41:19]} 16. Bc5 {[%emt 0:41:19]} Nc6 {[%emt 0:38:41]} 17. Bxf8 {[%emt 0:48:38]} Rhxf8 {[%emt 0:37:39]} 18. Rhe1 $11 {[%emt 0:42:50]} Rfd8 {[%emt 0:36:44]} 19. Nd4+ {[%emt 0:38:51]} Nxd4 {[%emt 0:36:30]} 20. cxd4 {[%emt 0:38:50]} Rac8+ {[%emt 0:36:47]} 21. Kb1 {[%emt 0:39:14]} Rc4 {[%emt 0:39:14]} 22. dxe5 {[%emt 0:38:25]} Rxd1+ {[%emt 0:34:23]} 23. Rxd1 {[%emt 0:38:48]} fxe5 {[%emt 0:38:48]} 24. b3 {[%emt 0:34:36]} Rc7 {[%emt 0:36:21]} 25. Rd3 {[%emt 0:33:24]} Kf5 {[%emt 0:23:16]} 26. Kb2 {[%emt 0:31:44]} Ke4 {[%emt 0:17:38]} 27. Rc3 {[%emt 0:29:02]} Rf7 {[%emt 0:29:02]} 28. f3+ {[%emt 0:25:38]} Kd4 {[%emt 0:08:41]} 29. Kc2 {[%emt 0:23:55]} b5 {[%emt 0:07:10]} 30. Rd3+ {[%emt 0:07:10]} Kc5 {[%emt 0:07:39]} 31. Re3 {[%emt 0:19:48]} Kd4 {[%emt 0:06:40]} 32. Rd3+ {[%emt 0:13:32]} Kc5 {[%emt 0:07:04]} 33. Rd8 {[%emt 0:13:46]} Re7 {[%emt 0:05:01]} 34. Kd3 {[%emt 0:05:01]} Kb4 {[%emt 0:04:25]} 35. Ke4 {[%emt 0:11:03]} Kc3 {[%emt 0:03:57]} 36. Rd5 {[%emt 0:03:57]} Kb4 {[%emt 0:02:26]} 37. g4 {[%emt 0:02:26]} g5 {[%emt 0:01:03]} 38. Rxe5 {[%emt 0:01:03]} Rxe5+ {[%emt 0:01:31]} 39. Kxe5 {[%emt 0:01:41]} Ka3 {[%emt 0:01:55]} 40. Kf5 {[%emt 0:01:57]} Kxa2 {[%emt 0:02:23]} 41. Kxg5 {[%emt 0:02:06]} a5 {[%emt 0:02:09]} 42. f4 {[%emt 0:02:07]} b4 {[%emt 0:00:46]} 43. f5 {[%emt 0:01:59]} a4 {[%emt 0:01:14]} 44. bxa4 {[%emt 0:29:58]} b3 {[%emt 0:29:58]} 45. f6 {[%emt 0:30:24]} b2 {[%emt 0:31:17]} 46. f7 {[%emt 0:30:48]} b1=Q {[%emt 0:31:21]} 47. f8=Q {[%emt 0:31:21]} Qc1+ {[%emt 0:29:17]} 48. Kh5 {[%emt 0:29:52]} Qc2 {[%emt 0:24:45]} 49. Qf4 {[%emt 0:26:43]} Ka3 {[%emt 0:21:22]} 50. a5 {[%emt 0:25:29]} Qc6 {[%emt 0:20:44]} 51. Qf5 {[%emt 0:23:41]} Qc7 {[%emt 0:20:24]} 52. h4 {[%emt 0:23:01]} Qd8 {[%emt 0:23:01]} 1-0

[Event "1.FrauenBL 2016-17"]
[Site "Berlin"]
[Date "2017.04.29"]
[Round "10.6"]
[White "Schneider, Veronika"]
[Black "Scheynin, Julia"]
[Result "1-0"]
[ECO "C06"]
[WhiteElo "2230"]
[BlackElo "2028"]
[Annotator "NA RC"]
[PlyCount "87"]
[EventDate "2017.??.??"]
[EventType "team-tourn"]
[EventCountry "GER"]
[SourceTitle "playchess.com"]
[Source "ChessBase"]
[SourceQuality "1"]
[WhiteTeam "SC Bad Königshofen"]
[BlackTeam "Karlsruher SF"]
[TimeControl "40/6000+30:3000+30"]

1. e4 {[%emt 1:30:27]} e6 {[%emt 1:30:27]} 2. d4 {[%emt 1:30:51]} d5 {[%emt 1:30:51]} 3. Nd2 {[%emt 1:31:13]} Nf6 {[%emt 1:31:18]} 4. e5 {[%emt 1:31:33]} Nfd7 {[%emt 1:31:45]} 5. c3 {[%emt 1:31:53]} c5 {[%emt 1:31:53]} 6. Bd3 {[%emt 1:32:02]} Nc6 {[%emt 1:32:28]} 7. Ne2 {[%emt 1:32:31]} cxd4 {[%emt 1:32:37]} 8. cxd4 {[%emt 1:32:53]} f6 {[%emt 1:33:04]} 9. exf6 {[%emt 1:33:10]} Nxf6 {[%emt 1:33:31]} 10. O-O {[%emt 1:33:25]} Bd6 {[%emt 1:33:25]} 11. Nf3 {[%emt 1:33:40]} Qc7 {[%emt 1:33:40]} 12. Nc3 {[%emt 1:33:14]} a6 {[%emt 1:33:37]} 13. Be3 {[%emt 1:32:45] C06: Französische Verteidigung (Tarrasch-Variante)} (13. Bd2 O-O 14. Rc1 Bd7 15. Re1 Rae8 16. Na4 Bc8 17. Ne5 Qb8 18. Bf4 Nxd4 19. Bxh7+ Kxh7 20. Qxd4 Ne4 {1-0 (33) Shankland,S (2652)-Michiels,B (2563) Wijk aan Zee 2015}) 13... O-O {[%emt 1:29:30] LiveBook: 34 Games} 14. Rc1 {[%emt 1:32:31]} Bd7 {[%emt 1:32:31]} 15. Na4 {[%emt 1:31:26]} Rae8 {[%emt 1:25:08]} 16. Nc5 {[%emt 1:31:00]} Re7 {[%emt 1:14:19]} 17. Nxd7 {[%emt 1:30:12]} Rxd7 $146 {[%emt 1:04:33]} (17... Qxd7 18. Re1 Bb8 19. Bg5 Ba7 20. Bh4 Qd6 {1-0 (52) Dvoirys,S (2550)-Gorodetzky,D (2371) Jerusalem 2015}) 18. Re1 {[%emt 1:27:08]} Qb6 {[%emt 0:41:07]} 19. Qe2 {[%emt 1:18:26]} Re7 {[%emt 0:34:57]} 20. Red1 {[%emt 0:34:57]} Nb4 {[%emt 0:26:49]} 21. Bb1 {[%emt 0:26:49]} Qd8 {[%emt 0:23:32]} 22. Bg5 {[%emt 1:07:34]} Qe8 {[%emt 0:19:32]} (22... Nc6 $14) 23. Ne5 {[%emt 1:04:22]} Rc7 {[%emt 1:04:22]} 24. Rxc7 {[%emt 1:01:53]} Bxc7 {[%emt 0:16:08]} 25. a3 {[%emt 0:47:40]} Nc6 {[%emt 0:16:30]} 26. Nxc6 {[%emt 0:16:30]} Qxc6 {[%emt 0:13:54]} 27. Re1 {[%emt 0:46:46]} Re8 {[%emt 0:14:19]} 28. Bxf6 {[%emt 0:14:48]} gxf6 {[%emt 0:14:48]} 29. Qg4+ {[%emt 0:46:21]} Kh8 {[%emt 0:14:21]} 30. Qh5 {[%emt 0:45:44]} Re7 {[%emt 0:45:44]} 31. Qh6 {[%emt 0:13:41]} Rf7 {[%emt 0:45:17]} 32. Bxh7 $18 {[%emt 0:42:26]} Bxh2+ {[%emt 0:12:46]} 33. Kf1 {[%emt 0:34:05]} Bf4 {[%emt 0:13:07]} 34. Qxf4 {[%emt 0:34:12]} Kxh7 {[%emt 0:13:26]} 35. Qh4+ {[%emt 0:33:37]} Kg7 {[%emt 0:12:21]} 36. Qg4+ {[%emt 0:33:41]} Kf8 {[%emt 0:12:42]} 37. Qxe6 {[%emt 0:31:14]} Qc4+ {[%emt 0:31:14]} 38. Kg1 {[%emt 0:13:01]} Qxd4 {[%emt 0:13:04]} 39. Qc8+ {[%emt 0:28:58]} Kg7 {[%emt 0:13:25]} 40. Re3 {[%emt 0:28:39]} Qd1+ {[%emt 0:10:37]} 41. Kh2 {[%emt 0:29:04]} Qh5+ {[%emt 0:09:25]} 42. Rh3 {[%emt 0:29:27]} Qe5+ {[%emt 0:09:40]} 43. Rg3+ {[%emt 0:09:40]} Kh6 {[%emt 0:08:22]} 44. Qg8 {[%emt 0:08:22]} 1-0

[Event "1.FrauenBL 2016-17"]
[Site "Berlin"]
[Date "2017.04.29"]
[Round "10.6"]
[White "Kube, Hannelore"]
[Black "Tran, My Linh"]
[Result "0-1"]
[ECO "A24"]
[WhiteElo "1930"]
[BlackElo "1990"]
[Annotator "NA RC"]
[PlyCount "49"]
[EventDate "2017.??.??"]
[EventType "team-tourn"]
[EventCountry "GER"]
[SourceTitle "playchess.com"]
[Source "ChessBase"]
[SourceQuality "1"]
[WhiteTeam "SV Medizin Erfurt"]
[BlackTeam "TuRa Harksheide"]
[TimeControl "40/6000+30:3000+30"]

1. c4 {[%emt 1:30:27]} Nf6 {[%emt 1:29:33]} 2. Nc3 {[%emt 1:30:51]} g6 {[%emt 1:29:54]} 3. g3 {[%emt 1:31:16]} Bg7 {[%emt 1:30:07]} 4. Bg2 {[%emt 1:31:41]} O-O {[%emt 1:31:41]} 5. e4 {[%emt 1:29:45]} d6 {[%emt 1:30:02]} 6. Nge2 {[%emt 1:32:20]} e5 {[%emt 1:27:25]} 7. d3 {[%emt 1:32:33]} Nbd7 {[%emt 1:32:33]} 8. O-O {[%emt 1:32:23]} Ne8 {[%emt 1:32:23]} 9. f4 {[%emt 1:25:24]} f5 {[%emt 1:06:21]} 10. Be3 {[%emt 1:20:48]} Ndf6 {[%emt 0:56:02]} 11. h3 {[%emt 1:11:43]} c6 {[%emt 1:11:43]} 12. Qd2 {[%emt 1:09:31]} Be6 {[%emt 1:09:31]} 13. Rad1 {[%emt 1:04:32]} fxe4 {[%emt 0:31:26]} 14. fxe5 $15 {[%emt 0:46:35]} (14. dxe4 $11 exf4 15. Rxf4 (15. gxf4 Bxc4 16. b3 Bxe2 17. Qxe2 Nh5 $11)) 14... dxe5 {[%emt 0:30:55]} 15. Nxe4 {[%emt 0:35:37]} Nxe4 {[%emt 0:31:18]} 16. Rxf8+ {[%emt 0:36:00]} Bxf8 {[%emt 0:31:03]} 17. Bxe4 {[%emt 0:35:02]} Bxh3 {[%emt 0:31:01]} 18. Bh6 {[%emt 0:31:43]} Nd6 {[%emt 0:27:30]} 19. Nc3 {[%emt 0:23:40]} Qd7 {[%emt 0:12:41]} 20. Qg5 {[%emt 0:05:21]} Nf7 {[%emt 0:10:39]} 21. Qh4 {[%emt 0:10:39]} Bxh6 {[%emt 0:09:54]} 22. Bd5 {[%emt 0:01:20]} cxd5 {[%emt 0:09:24]} 23. Nxd5 {[%emt 0:01:47]} Bg5 {[%emt 0:07:51]} 24. Qe4 {[%emt 0:02:10]} Qg4 {[%emt 0:02:10]} 25. Ne7+ {[%emt 0:02:10] Bd2 0:02:10 b4 0:02:10 Qe2 0:02:10 Bd7 0:02:10 --- 0:02:10 Rc7 0:02:10} 0-1